[Event "FIDE Womens Candidates 2024"]
[Site "Toronto"]
[Date "2024.04.18"]
[Round "12.3"]
[White "Muzychuk, Anna"]
[Black "Vaishali, Rameshbabu"]
[Result "0-1"]
[ECO "C84"]
[WhiteElo "2520"]
[BlackElo "2475"]
[Annotator "TA"]
[PlyCount "114"]
[EventDate "2024.04.02"]
[EventType "tourn"]
[EventCountry "CAN"]
[SourceTitle "playchess.com"]
[Source "ChessBase"]
[SourceQuality "1"]
[TimeControl "40/5400+30:1800+30"]

{[%evp 41,114,-20,-15,-18,-12,-12,0,-33,-19,-25,-18,-59,-54,-60,-7,-42,-45,-40,-43,-35,-37,-92,-87,-96,-92,-131,-135,-134,-108,-162,-137,-177,-177,-177,-176,-178,-187,-168,-203,-212,-213,-210,-221,-221,-216,-212,-207,-437,-431,-498,-494,-479,-414,-2391,-461,-2438,-6432,-29958,-12381,-29970,-29972,-29972,-29974,-29974,-29976,-29976,-29977,-29976,-29977,-29977,-29978,-29979,-29980,-29981,-29982]} 1. e4 {[%emt 0:00:02]} e5 {[%emt 0:00:09]} 2. Nf3 {[%emt 0:00:07]} Nc6 {[%emt 0:00:05]} 3. Bb5 {[%emt 0:00:07]} a6 {[%emt 0:00:06]} 4. Ba4 {[%emt 0:00:06]} Nf6 {[%emt 0:00:07]} 5. O-O {[%emt 0:00:22]} Nxe4 {[%emt 0:00:20]} 6. d4 {[%emt 0:05:23]} Be7 {[%emt 0:00:16]} 7. Re1 {[%emt 0:01:34]} b5 {[%emt 0:00:25]} 8. Rxe4 {[%emt 0:00:18] C84: Closed Ruy Lopez: Unusual White 6th moves.} d5 {[%emt 0:00:08]} 9. Nxe5 {[%emt 0:00:39]} Nxe5 {[%emt 0:00:11]} 10. Rxe5 {[%emt 0:00:03]} bxa4 {[%emt 0:00:04]} 11. Qe2 {[%emt 0:01:16]} Be6 {[%emt 0:00:23]} 12. f4 {[%emt 0:11:36]} Kf8 {[%emt 0:00:30]} 13. Nc3 {[%emt 0:06:43]} Bd6 {[%emt 0:00:48]} 14. Nxa4 {[%emt 0:02:40]} Bxe5 {[%emt 0:00:22]} 15. fxe5 {[%emt 0:02:52]} Qh4 {[%emt 0:00:23]} 16. Be3 {[%emt 0:07:28]} Qg4 {[%emt 0:00:52]} 17. Qd2 {[%emt 0:08:52]} h5 {[%emt 0:01:12]} 18. h3 $146 {[%emt 0:06:33]} ({Predecessor:} 18. Nc3 h4 19. h3 Qg6 20. Rf1 Rh5 21. Ne2 Rf5 22. Nf4 Qh7 23. Re1 Kg8 24. Qa5 {0-1 Brkic,A (2606)-Pavlidis,A (2566) Bundesliga 2324 2023 (7.5)}) 18... Qg6 {[%emt 0:02:20]} 19. h4 {[%emt 0:02:09]} Kg8 {[%emt 0:12:44]} 20. Rf1 {[%emt 0:00:12]} Bf5 {[%emt 0:06:49]} 21. c3 {[%emt 0:00:53]} Kh7 {[%emt 0:12:01]} 22. Nc5 {[%emt 0:00:24]} Rhf8 {[%emt 0:02:14]} 23. Bf4 {[%emt 0:08:38]} f6 {[%emt 0:09:07]} 24. e6 {[%emt 0:07:42]} Rfe8 {[%emt 0:04:50]} 25. Re1 {[%emt 0:06:41]} Re7 {[%emt 0:06:19]} 26. c4 {[%emt 0:01:46]} dxc4 {[%emt 0:11:26]} 27. d5 {[%emt 0:00:07]} Bd3 {[%emt 0:03:11]} (27... Rd8 $15 28. Nb7 Rc8) 28. d6 {[%emt 0:01:38]} cxd6 {[%emt 0:01:41]} 29. Bxd6 {[%emt 0:00:01]} Ree8 {[%emt 0:03:02]} 30. e7 {[%emt 0:01:12]} Qg4 {[%emt 0:03:01]} 31. Qf2 {[%emt 0:05:54]} (31. Ne6 $15) 31... Bf5 $17 {[%emt 0:01:27]} 32. Rf1 {[%emt 0:03:33]} Bg6 {[%emt 0:01:01]} 33. Re1 {[%emt 0:02:34]} Rac8 {[%emt 0:02:18]} 34. Ne6 {[%emt 0:02:56]} Rc6 {[%emt 0:04:24]} 35. Qf4 {[%emt 0:00:14]} (35. Qd2 $17) 35... Kg8 {[%emt 0:08:41]} 36. Nc7 {[%emt 0:02:07]} Rxe7 {[%emt 0:00:58]} 37. Rxe7 {[%emt 0:00:09]} Qd1+ {[%emt 0:00:03]} 38. Kh2 {[%emt 0:00:28]} Qxd6 {[%emt 0:00:12]} 39. Qxd6 {[%emt 0:00:30]} Rxd6 {[%emt 0:00:02]} 40. Ne8 {[%emt 0:00:00]} Kf8 $1 {[%emt 0:00:00]} ({But not} 40... Bxe8 41. Rxe8+ Kf7 42. Rc8 $17) 41. Nxd6 {[%emt 0:01:20]} Kxe7 {[%emt 0:05:27]} 42. Nxc4 {[%emt 0:00:07] [#]} Bf7 $1 {[%emt 0:00:07]} 43. Ne3 {[%emt 0:06:44]} Bxa2 {[%emt 0:00:47]} 44. Kg3 $2 {[%emt 0:00:17]} (44. Nf5+ {was the only defense.} Kf8 45. Kg3) 44... Kd6 $19 {[%emt 0:09:30]} 45. Kf4 {[%emt 0:01:31] [#]} Kc5 $1 {[%emt 0:01:04]} 46. g4 {[%emt 0:10:57]} hxg4 {[%emt 0:04:42]} 47. Nxg4 {[%emt 0:03:46]} (47. Kxg4 $142 Kb4 48. h5) 47... a5 {[%emt 0:03:21]} (47... Kb4 $142 {...Kb3 would now be deadly.} 48. h5 Kb3) 48. Ne3 {[%emt 0:01:53]} (48. Ke3 $142 Kc4 49. Kd2) 48... a4 $19 {[%emt 0:04:38]} 49. h5 {[%emt 0:04:43]} Kb4 {[%emt 0:02:13]} 50. Nf5 {[%emt 0:00:25]} Kb3 {[%emt 0:01:31]} 51. Nxg7 {[%emt 0:00:09]} Kxb2 {[%emt 0:00:05]} 52. h6 {[%emt 0:05:49]} Bg8 {[%emt 0:00:05]} 53. Ne8 {[%emt 0:00:25]} a3 {[%emt 0:00:27]} 54. Nxf6 {[%emt 0:00:41]} a2 {[%emt 0:00:14]} 55. Nxg8 {[%emt 0:00:21]} a1=Q {[%emt 0:00:06]} ({Weaker is} 55... a1=B 56. Kf5 Kc3 57. Nf6 Kd3 58. h7 Ke2 59. h8=Q (59. h8=R Kd3 $18) 59... Kd3 60. Qd8+ Bd4 61. Qd5) 56. h7 {[%emt 0:01:24]} Kb3 {[%emt 0:00:21]} 57. Kf5 {[%emt 0:01:13]} Qb1+ {[%emt 0:00:29]} 0-1

[Event "FIDE Womens Candidates 2024"]
[Site "Toronto"]
[Date "2024.04.21"]
[Round "14.1"]
[White "Muzychuk, Anna"]
[Black "Tan, Zhongyi"]
[Result "1/2-1/2"]
[ECO "B28"]
[WhiteElo "2520"]
[BlackElo "2521"]
[Annotator "TA"]
[PlyCount "72"]
[EventDate "2024.04.02"]
[EventType "tourn"]
[EventCountry "CAN"]
[SourceTitle "playchess.com"]
[Source "ChessBase"]
[SourceQuality "1"]
[TimeControl "40/5400+30:1800+30"]

{[%evp 17,72,47,52,54,19,17,24,11,29,27,22,20,41,43,51,-117,-108,-125,-138,-144,-158,-121,-143,-146,-149,-256,-256,-200,-212,-181,-217,-269,-269,-265,-128,-117,-122,-152,-70,-66,-50,-48,-24,-41,0,0,0,0,0,0,0,0,0,0,0,0,0]} 1. e4 {[%emt 0:00:03]} c5 {[%emt 0:00:06]} 2. Nf3 {[%emt 0:00:05]} a6 {[%emt 0:00:06]} 3. c4 {[%emt 0:01:56]} Nc6 {[%emt 0:00:06]} 4. d4 {[%emt 0:00:23]} cxd4 {[%emt 0:00:06]} 5. Nxd4 {[%emt 0:00:09]} e5 {[%emt 0:00:05]} 6. Nf5 {[%emt 0:01:33]} d5 {[%emt 0:00:07]} 7. cxd5 {[%emt 0:00:21]} Bxf5 {[%emt 0:00:07]} 8. exf5 {[%emt 0:00:05]} Nd4 {[%emt 0:00:04]} 9. Nc3 {[%emt 0:04:19]} Nf6 {[%emt 0:00:08]} 10. Bd3 {[%emt 0:00:44][%cal Bf1d3,Bd3e4,Be4b7][%mdl 32]} Be7 {[%emt 0:00:48]} 11. O-O {[%emt 0:05:32] Re1 would now be deadly.} O-O $1 {[%emt 0:00:10]} 12. Bg5 {[%emt 0:09:04] White has an edge.} Nxd5 {[%emt 0:00:17]} 13. Nxd5 {[%emt 0:01:12]} Bxg5 {[%emt 0:00:07]} 14. Be4 {[%emt 0:01:11]} g6 {[%emt 0:00:20]} 15. f4 {[%emt 0:08:15]} Bf6 {[%emt 0:00:19]} 16. Qd3 $2 {[%emt 0:18:18]} (16. Qg4 $14 Nxf5 17. Nxf6+ Qxf6 18. Bxf5 Qxf5 19. Qxf5 gxf5 20. fxe5) 16... gxf5 $1 $17 {[%emt 0:31:45]} 17. Nxf6+ {[%emt 0:05:44]} Qxf6 {[%emt 0:00:07]} 18. Bxb7 {[%emt 0:00:29]} e4 $1 {[%emt 0:05:39]} 19. Qc4 {[%emt 0:06:21]} (19. Qg3+ Kh8 20. Kh1 Rab8) 19... Rad8 {[%emt 0:03:06] And now ...Rd7 would win.} 20. Rad1 {[%emt 0:07:46][%cal Ob7d5]} e3 {[%emt 0:12:33]} 21. Rfe1 {[%emt 0:05:32]} (21. Bf3 $17) 21... e2 $19 {[%emt 0:00:42]} 22. Rd3 {[%emt 0:06:37][%cal Ob7d5] [#]} Qb6 $1 {[%emt 0:01:48][%csl LRb2,LRb7]} 23. Kh1 {[%emt 0:00:08]} Qxb7 {[%emt 0:05:25]} (23... Qxb2 24. h3 $15 (24. Bxa6 Rfe8 $17) (24. Bd5 $2 Rxd5 25. Qxd5 Qb4 $19)) 24. Rxd4 {[%emt 0:00:05]} Qxb2 {[%emt 0:00:25]} 25. Rd3 {[%emt 0:01:38] [#]} (25. Rxd8 $2 Rxd8 26. h3 Rd1 $19) 25... Rxd3 {[%emt 0:14:28]} (25... Rfe8 $1 $19 {[%cal Ob2a1] ( -> ...Qa1!)} 26. g3 Qb7+ 27. Kg1 Qb6+ 28. Kg2 Rc8) 26. Qxd3 {[%emt 0:00:01][%mdl 4096] Endgame. KQR-KQR} Re8 {[%emt 0:05:11] ...Qb4 is the strong threat.} (26... Qxa2 $6 27. Qxf5 Re8 28. Qg5+ Kf8 29. Qc5+ Re7 30. Qc8+ Kg7 31. Qg4+ Kf6 32. Qh4+ Ke6 33. Qh3+ f5 34. Qd3 $11) 27. Qxf5 {[%emt 0:02:13]} Qc3 {[%emt 0:02:31]} ({Worse is} 27... Qxa2 28. Qg5+ Kf8 29. Qc5+ Re7 30. Qc8+ Kg7 31. Qg4+ Kf6 32. Qh4+ Ke6 33. f5+ Kd7 34. Qd4+ Kc8 35. Qh8+ Kb7 36. Qd4 $11) (27... Qb4 $17 {[%cal Rb4e1]} 28. Qg5+ (28. Rxe2 $2 {gets mated.} Qe1+ 29. Rxe1 Rxe1#) 28... Kf8 29. Qh6+ Ke7 (29... Kg8 30. Qh4 $17) 30. Qh4+ (30. Rxe2+ $2 Kd7 $19) 30... Kd7) 28. Qg5+ $1 $15 {[%emt 0:02:22]} Kh8 {[%emt 0:00:15][%cal Rc3e1]} 29. Qh4 {[%emt 0:04:50]} Re4 {[%emt 0:07:07]} 30. h3 $1 {[%emt 0:02:22]} Qd2 {[%emt 0:04:35]} 31. Qf6+ {[%emt 0:04:02] The position is equal.} (31. Kh2 {simplifies} Qxf4+ 32. Qxf4 Rxf4 33. Rxe2 Ra4 34. Kg3) 31... Kg8 {[%emt 0:00:06]} 32. Qg5+ {[%emt 0:00:07]} Kf8 {[%emt 0:00:56]} 33. Qc5+ $1 {[%emt 0:00:18]} Kg7 {[%emt 0:01:06]} 34. Qg5+ {[%emt 0:00:04]} Kf8 {[%emt 0:00:03]} 35. Qc5+ $1 {[%emt 0:00:04]} Kg7 {[%emt 0:00:05]} 36. Qg5+ {[%emt 0:00:04]} Kf8 {[%emt 0:01:40] Black had all chances to win.   Weighted Error Value: White=0.15 (very precise) /Black=0.13 (very precise) .  Mistake:       	White=2     	Black=2      Inaccurate:     	---       	Black=1      OK:         	White=10    	Black=10     Best:        	White=5     	Black=3      Strong:       	White=4     	Black=4} (36... Kh8 $5 37. Qf6+ $8 Kg8 38. Qg5+ Kf8 $11) 1/2-1/2